bitfinex/quotes_SOLUSD_20250206
["timestamp","ask_amount","ask_price","bid_price","bid_amount"]
[1738854058085,22.66096839,195.77,195.71,0.37647]
[1738854058591,22.56442002,195.76,195.71,0.37647]
[1738854058801,22.56442002,195.73,195.71,0.12549]
[1738854059117,22.56442002,195.74,195.71,0.12549]
[1738854059277,22.66096839,195.77,195.71,0.12549]
[1738854059472,0.09654837,195.77,195.73,0.12549]
[1738854059674,0.09654837,195.77,195.75,0.12549]
[1738854061027,0.09654837,195.77,195.69,0.76612225]
[1738854061207,0.09654837,195.77,195.7,5.1098]
[1738854061412,0.09654837,195.77,195.71,0.50196]
[1738854061575,22.56442002,195.75,195.71,0.37647]
[1738854061778,22.56442002,195.74,195.71,0.37647]
[1738854062095,22.56442002,195.72,195.67,11.6621]
[1738854062302,22.66096839,195.77,195.68,0.50196]
[1738854062479,22.66096839,195.77,195.71,0.12549]
[1738854062683,22.66096839,195.77,195.73,0.12549]
[1738854063211,22.66096839,195.77,195.72,0.25098]
[1738854063212,22.56442002,195.76,195.72,0.12549]
[1738854063535,22.56442002,195.73,195.67,6.5515]
[1738854063682,22.56442002,195.72,195.68,0.25098]
[1738854064014,22.56442002,195.71,195.68,0.25098]
[1738854064522,22.56442002,195.71,195.67,6.5515]
[1738854064523,22.56442002,195.69,195.62,11.2728]
[1738854064809,22.56442002,195.69,195.63,0.50196]
[1738854065025,22.56442002,195.7,195.63,0.50196]
[1738854065236,22.56442002,195.71,195.63,0.50196]
[1738854065530,22.56442002,195.75,195.66,0.12549]
[1738854065698,0.12654837,195.77,195.68,0.12549]
[1738854065896,0.12654837,195.77,195.65,1.0]
[1738854065897,22.56442002,195.76,195.7,0.12549]
[1738854066098,0.12654837,195.77,195.69,0.37647]
[1738854066326,0.12654837,195.77,195.69,0.25098]
[1738854066623,22.56442002,195.76,195.66,0.50196]
[1738854066826,22.56442002,195.76,195.69,0.12549]
[1738854067032,22.69096839,195.77,195.71,0.12549]
[1738854067208,22.56442002,195.76,195.7,0.37647]
[1738854067408,22.56442002,195.72,195.65,20.0]
[1738854067593,22.56442002,195.66,195.6,5.1124]
[1738854067796,22.56442002,195.66,195.59,1.596]
[1738854068012,22.56442002,195.66,195.63,0.25098]
[1738854068334,22.56442002,195.68,195.64,0.12549]
[1738854068496,0.80810164,195.75,195.59,1.596]
[1738854068497,22.56442002,195.65,195.59,1.596]
[1738854068692,22.56442002,195.62,195.57,6.6422]
[1738854068895,22.56442002,195.6,195.57,6.6422]
[1738854069096,22.56442002,195.61,195.57,6.6422]
[1738854069328,22.56442002,195.62,195.57,6.6422]
[1738854069633,22.56442002,195.6,195.57,0.063]
[1738854070132,22.56442002,195.58,195.57,0.063]
[1738854071400,22.66868639,195.58,195.57,0.063]
[1738854071933,0.10426637,195.58,195.57,0.063]
[1738854072299,0.10426637,195.58,195.57,1.33178565]
[1738854072925,0.10426637,195.58,195.57,6.44498565]
[1738854073126,0.10426637,195.58,195.57,26.26013418]
[1738854073339,0.0946469,195.6,195.59,2.50196]
[1738854073548,0.0946469,195.6,195.59,23.15094171]
[1738854074050,0.10061662,195.62,195.61,2.25098]
[1738854074339,3.049e-05,195.63,195.62,17.47610853]
[1738854074557,22.59442002,195.77,195.63,15.91380853]
[1738854074711,1.959e-05,195.64,195.63,16.68001346]
[1738854074908,2.261e-05,195.67,195.66,42.41870853]
[1738854075216,0.03,195.77,195.7,1.71316]
[1738854075415,0.03,195.77,195.72,0.50196]
[1738854075621,0.03,195.77,195.74,0.50196]
[1738854076111,22.56442002,195.75,195.7,5.9912]
[1738854076501,22.56442002,195.75,195.7,4.78]
[1738854076701,36.6755406,195.74,195.71,0.50196]
[1738854076904,36.6755406,195.74,195.71,0.12549]
[1738854077207,36.6755406,195.72,195.7,4.78]
[1738854077408,36.7055406,195.77,195.71,0.50196]
[1738854077607,0.03,195.77,195.71,1.26817488]
[1738854077825,0.03,195.77,195.73,0.50196]
[1738854078038,0.03,195.77,195.73,1.26797787]
[1738854078243,0.03,195.77,195.73,0.50196]
[1738854078609,36.7055406,195.77,195.73,0.50196]
[1738854078919,36.6755406,195.76,195.73,0.50196]
[1738854079944,36.6755406,195.75,195.7,4.78]
[1738854080258,36.6755406,195.75,195.71,0.50196]
[1738854080950,36.7055406,195.77,195.71,0.50196]
[1738854081161,0.03,195.77,195.73,0.50196]
[1738854081314,0.03,195.77,195.74,0.76601764]
[1738854081514,0.03,195.77,195.75,0.50196]
[1738854081715,36.7055406,195.77,195.7,10.65590786]
[1738854081921,36.6755406,195.75,195.67,0.76616046]
[1738854082228,36.7055406,195.77,195.68,13.91380853]
[1738854082425,36.6755406,195.76,195.7,0.50196]
[1738854082633,36.6755406,195.71,195.7,0.12549]
[1738854082824,36.6755406,195.71,195.62,11.1057]
[1738854083134,36.6755406,195.73,195.63,0.76644249]
[1738854083335,36.7055406,195.77,195.65,1.0]
[1738854083521,36.7055406,195.77,195.67,0.50196]
[1738854083842,36.6755406,195.75,195.69,0.50196]
[1738854084042,36.6755406,195.71,195.64,0.76625357]
[1738854084248,5.138,195.77,195.6,2.39862161]
[1738854084249,36.6755406,195.66,195.6,2.39862161]
[1738854084415,36.6755406,195.65,195.6,1.6322]
[1738854084620,36.6755406,195.65,195.57,17.14628183]
[1738854084843,36.6755406,195.65,195.58,0.37647]
[1738854085228,36.6755406,195.64,195.59,0.12549]
[1738854085425,36.6755406,195.65,195.59,0.12549]
[1738854085849,6.6605,195.73,195.59,0.12549]
[1738854085850,36.6755406,195.67,195.59,0.12549]
[1738854086217,36.6755406,195.67,195.61,0.50196]
[1738854086422,36.6755406,195.68,195.61,0.50196]
[1738854086621,36.6755406,195.7,195.63,0.50196]
[1738854086927,36.6755406,195.71,195.63,0.50196]
[1738854087265,36.6755406,195.66,195.63,0.50196]
[1738854087571,36.6755406,195.7,195.67,0.063]
[1738854087859,36.6755406,195.71,195.67,0.063]
[1738854088026,36.6755406,195.74,195.67,0.063]
[1738854088224,36.6755406,195.73,195.67,0.063]
[1738854088420,36.6755406,195.72,195.67,0.063]
[1738854088753,0.03,195.77,195.67,0.063]
[1738854089066,36.6755406,195.68,195.67,0.063]
[1738854089349,41.7858406,195.68,195.67,0.063]
[1738854089766,36.6755406,195.68,195.67,0.063]
[1738854089932,41.7858406,195.68,195.67,0.063]
[1738854090127,44.20944224,195.68,195.67,0.063]
[1738854090354,50.75094224,195.68,195.67,0.063]
[1738854090933,20.0,195.65,195.57,0.063]
[1738854091127,36.6755406,195.6,195.57,0.063]
[1738854091442,36.78145159,195.58,195.57,0.063]
[1738854091748,0.10591099,195.58,195.57,0.063]
[1738854091946,36.78145159,195.58,195.57,0.063]
[1738854093358,41.89435159,195.58,195.57,0.063]
[1738854094255,36.78145159,195.58,195.57,0.063]
[1738854095272,41.89435159,195.58,195.57,0.063]
[1738854096259,36.78145159,195.58,195.57,0.063]
[1738854096467,44.95255159,195.58,195.53,0.063]
[1738854096669,36.6755406,195.54,195.53,0.063]
[1738854097244,36.78145159,195.58,195.53,0.063]
[1738854097646,0.10591099,195.58,195.53,0.063]
[1738854098340,36.6755406,195.54,195.53,0.063]
[1738854099548,36.6755406,195.55,195.53,0.063]
[1738854100267,36.78145159,195.58,195.53,0.063]
[1738854100641,0.10591099,195.58,195.53,0.063]
[1738854100844,0.10591099,195.58,195.55,0.25098]
[1738854101076,0.10591099,195.58,195.54,0.25098]
[1738854101077,0.10591099,195.58,195.54,6.5059]
[1738854101244,0.10591099,195.58,195.56,0.50196]
[1738854101560,0.10591099,195.58,195.57,1.01767656]
[1738854101744,0.10591099,195.58,195.57,0.12549]
[1738854102368,0.10591099,195.58,195.57,0.25098]
[1738854102572,0.10591099,195.58,195.57,5.48967]
[1738854103354,0.10591099,195.58,195.57,0.25098]
[1738854104461,0.10591099,195.58,195.57,0.12549]
[1738854105354,0.10591099,195.58,195.57,1.14327556]
[1738854105554,0.10591099,195.58,195.57,0.12549]
[1738854105854,22.69694621,195.58,195.54,6.5059]
[1738854106050,22.59103522,195.56,195.53,0.063]
[1738854106249,22.69694621,195.58,195.54,0.50196]
[1738854106446,0.10591099,195.58,195.54,0.50196]
[1738854106676,22.69694621,195.58,195.54,0.50196]
[1738854106852,0.10591099,195.58,195.54,0.50196]
[1738854107049,0.10591099,195.58,195.56,0.25098]
[1738854107370,0.10591099,195.58,195.57,6.38188564]
[1738854108173,0.10591099,195.58,195.57,1.26868564]
[1738854108361,0.10591099,195.58,195.57,0.50196]
[1738854108567,0.10591099,195.58,195.57,0.12549]
[1738854109271,0.10591099,195.58,195.57,0.50196]
[1738854109471,0.10591099,195.58,195.57,5.61516]
[1738854109880,0.10591099,195.58,195.57,0.50196]
[1738854110482,22.69694621,195.58,195.53,0.063]
[1738854110658,22.59103522,195.56,195.53,0.063]
[1738854111372,22.59103522,195.55,195.53,0.063]
[1738854111689,22.70125122,195.54,195.53,0.063]
[1738854113359,0.110216,195.54,195.53,0.063]
[1738854114369,0.110216,195.54,195.53,1.3318707]
[1738854115496,0.110216,195.54,195.53,14.74371923]
[1738854115664,0.110216,195.54,195.53,19.85801923]
[1738854116386,0.09403551,195.55,195.54,13.91380853]
[1738854117407,0.09403551,195.55,195.54,15.91380853]
[1738854117622,3.551e-05,195.55,195.54,21.02780853]
[1738854117908,0.10721781,195.56,195.55,15.91380853]
[1738854118213,0.10376387,195.58,195.57,1.50196]
[1738854118400,6.387e-05,195.58,195.57,24.50363586]
[1738854118705,9.789e-05,195.6,195.59,15.91380853]
[1738854119015,1.611e-05,195.61,195.6,15.41380853]
[1738854119322,0.53,195.77,195.62,2.00196]
[1738854119601,23.12103522,195.77,195.72,0.25098]
[1738854119802,22.62103522,195.77,195.72,1.01712065]
[1738854120010,0.03,195.77,195.74,0.25098]
[1738854120380,0.03,195.77,195.76,0.25098]
[1738854120711,0.03,195.77,195.76,1.26793495]
[1738854121124,0.03,195.77,195.76,0.50196]
[1738854121305,0.03,195.77,195.72,0.76590891]
[1738854121478,0.03,195.77,195.73,6.618]
[1738854121785,0.03,195.77,195.75,0.25098]
[1738854121989,22.62103522,195.77,195.75,0.25098]
[1738854122502,22.59103522,195.76,195.75,0.25098]
[1738854122693,36.66333013,195.76,195.75,0.25098]
[1738854123104,36.66333013,195.76,195.7,0.76606228]
[1738854123315,36.66333013,195.73,195.69,0.76606228]
[1738854123639,36.66333013,195.73,195.68,16.81331099]
[1738854123785,36.66333013,195.75,195.69,0.50196]
[1738854123983,0.03,195.77,195.71,0.50196]
[1738854124291,0.03,195.77,195.74,0.12549]
[1738854124673,36.69333013,195.77,195.73,0.12549]
[1738854124891,36.66333013,195.74,195.69,0.76607311]
[1738854125097,36.66333013,195.72,195.7,0.50196]
[1738854125329,36.66333013,195.71,195.7,0.12549]
[1738854125499,36.66333013,195.72,195.7,0.12549]
[1738854125698,36.66333013,195.72,195.69,0.50196]
[1738854126035,36.66333013,195.71,195.69,0.50196]
[1738854126227,36.66333013,195.7,195.69,0.25098]
[1738854126621,36.66333013,195.71,195.69,0.25098]
[1738854126935,36.66333013,195.7,195.69,0.25098]
[1738854127132,36.66333013,195.72,195.69,0.25098]
[1738854127518,36.66333013,195.74,195.7,0.25098]
[1738854128207,0.03,195.77,195.74,0.25098]
[1738854128412,36.69333013,195.77,195.75,0.25098]
[1738854128605,0.03,195.77,195.75,0.25098]
[1738854128820,36.69333013,195.77,195.75,0.25098]
[1738854129129,37.16333013,195.76,195.69,5.8760753]
[1738854129298,36.66333013,195.75,195.7,0.50196]
[1738854129501,36.69333013,195.77,195.72,0.25098]
[1738854129713,36.66333013,195.76,195.72,0.25098]
[1738854129922,36.66333013,195.75,195.72,0.25098]
[1738854130230,36.66333013,195.75,195.7,0.50196]
[1738854130438,0.03,195.77,195.72,0.25098]
[1738854130439,36.69682047,195.77,195.72,0.25098]
[1738854130638,0.03,195.77,195.72,0.50196]
[1738854130801,0.03,195.77,195.75,0.12549]
[1738854131437,0.10412929,195.76,195.75,0.12549]
[1738854131619,0.10412929,195.76,195.75,6.12553915]
[1738854131815,0.10412929,195.76,195.75,1.01703915]
[1738854132002,0.10412929,195.76,195.75,0.25098]
[1738854132606,0.10412929,195.76,195.75,0.50196]
[1738854133339,36.77094976,195.76,195.75,0.12549]
[1738854134324,0.5,195.74,195.67,0.76613898]
[1738854134528,36.66682047,195.71,195.67,0.76613898]
[1738854134711,36.66682047,195.71,195.68,0.50196]
[1738854135030,36.77094976,195.76,195.7,0.50196]
[1738854135204,0.10412929,195.76,195.72,13.91380853]
[1738854135404,0.10412929,195.76,195.75,0.37647]
[1738854135615,0.10412929,195.76,195.75,1.14250121]
[1738854136220,0.10412929,195.76,195.75,1.26799121]
[1738854136916,36.77094976,195.76,195.75,0.12549]
[1738854137129,37.27094976,195.76,195.7,0.76608574]
[1738854137429,36.66682047,195.73,195.7,0.76608574]
[1738854137626,36.66682047,195.73,195.71,0.25098]
[1738854137829,36.66682047,195.73,195.71,0.12549]
[1738854138008,0.5,195.7,195.64,0.76629838]
[1738854138211,36.66682047,195.65,195.63,0.063]
[1738854138745,36.66682047,195.64,195.63,0.063]
[1738854139236,37.16682047,195.64,195.63,0.063]
[1738854142625,78.94504094,195.64,195.63,0.063]
[1738854142842,78.94504094,195.64,195.53,0.063]
[1738854142843,22.61161631,195.55,195.53,0.063]
[1738854143020,23.11161631,195.54,195.53,0.063]
[1738854145133,22.61161631,195.54,195.53,0.063]
[1738854145817,22.61161631,195.55,195.53,0.063]
[1738854146011,22.61161631,195.54,195.53,0.063]
[1738854146330,23.11604509,195.54,195.53,0.063]
[1738854146853,22.61604509,195.54,195.53,0.063]
[1738854147348,22.61604509,195.57,195.53,0.063]
[1738854147937,23.11604509,195.57,195.53,0.063]
[1738854148122,22.61604509,195.57,195.53,0.063]
[1738854148320,22.61604509,195.59,195.55,0.12549]
[1738854148636,1.5321,195.66,195.55,0.12549]
[1738854148637,0.5,195.62,195.57,0.12549]
[1738854149144,22.61604509,195.62,195.56,0.12549]
[1738854149441,22.61604509,195.62,195.58,0.25098]
[1738854149649,22.61604509,195.64,195.6,0.25098]
[1738854149843,23.11604509,195.63,195.6,0.25098]
[1738854150039,0.5,195.58,195.54,6.4518]
[1738854150351,22.61604509,195.57,195.53,0.063]
[1738854150555,22.61604509,195.56,195.53,0.063]
[1738854150757,22.61604509,195.58,195.56,0.25098]
[1738854150919,22.61604509,195.58,195.56,0.12549]
[1738854151123,22.61604509,195.57,195.56,0.12549]
[1738854151327,22.61604509,195.58,195.55,0.25098]
[1738854151623,22.72795942,195.58,195.57,0.25098]
[1738854151928,0.5,195.55,195.53,0.063]
[1738854152127,23.11604509,195.54,195.53,0.063]
[1738854153838,28.23004509,195.54,195.53,0.063]
[1738854154447,20.0,195.51,195.47,0.063]
[1738854154646,23.11604509,195.48,195.47,0.063]
[1738854156344,0.5,195.43,195.33,0.063]
[1738854156549,23.11604509,195.38,195.33,0.063]
[1738854157418,23.11604509,195.38,195.34,0.12549]
[1738854157819,23.11604509,195.38,195.36,0.12549]
[1738854157820,22.61604509,195.38,195.36,0.12549]
[1738854158136,0.5,195.38,195.36,0.12549]
[1738854158443,23.11604509,195.38,195.36,0.12549]
[1738854158677,23.11604509,195.38,195.34,0.12549]
[1738854160157,23.11604509,195.38,195.33,0.063]
[1738854164044,28.23424509,195.38,195.33,0.063]
[1738854164858,30.55934673,195.38,195.33,0.063]
[1738854165155,29.75124509,195.38,195.33,0.063]
[1738854165338,23.11604509,195.34,195.33,0.063]
[1738854165732,28.23524509,195.34,195.33,0.063]
[1738854166179,20.0,195.31,195.24,0.12549]
[1738854166353,0.5,195.24,195.23,8.34673673]
[1738854166529,23.11604509,195.24,195.23,8.34673673]
[1738854166723,23.11604509,195.24,195.14,0.76832772]
[1738854166724,0.5,195.18,195.14,0.76832772]
[1738854166951,0.5,195.18,195.06,19.9049]
[1738854166952,23.11604509,195.18,195.07,0.76832831]
[1738854167164,0.5,195.12,195.07,0.76832831]
[1738854167346,22.61604509,195.18,195.01,39.63583218]
[1738854167347,0.5,195.05,195.01,39.90448662]
[1738854167650,0.80810164,195.18,195.01,39.90448662]
[1738854167651,0.5,195.13,195.07,1.0]
[1738854167856,0.5,195.13,195.08,5.1261]
[1738854168059,0.5,195.12,195.09,1.0]
[1738854168234,0.5,195.08,195.02,0.76861862]
[1738854168556,0.5,195.02,195.01,39.13583218]
[1738854168854,0.5,195.02,195.0,5.25774358]
[1738854169035,0.5,195.01,195.0,5.25774358]
[1738854169228,23.11604509,195.01,195.0,5.25774358]
[1738854169829,0.5,195.01,195.0,5.25774358]
[1738854170546,23.11604509,195.01,195.0,5.25774358]
[1738854170749,0.5,194.98,194.97,20.0]
[1738854171058,0.5,194.97,194.96,1.24895039]
[1738854171224,0.5,194.98,194.96,1.24895039]
[1738854171432,0.10639666,194.98,194.96,6.37795039]
[1738854171763,0.5,194.97,194.96,1.24895039]
[1738854172137,0.10639666,194.98,194.97,5.1289]
[1738854172332,0.60639666,194.98,194.97,5.1289]
[1738854172854,0.10639666,194.98,194.97,5.63086]
[1738854173156,9.666e-05,194.98,194.97,27.40003097]
[1738854173339,9.666e-05,194.98,194.97,5.63086]
[1738854173677,0.50009666,194.98,194.97,5.25439]
[1738854174256,9.666e-05,194.98,194.97,5.37988]
[1738854174760,0.50009666,194.98,194.97,5.25439]
[1738854175053,0.50009666,194.98,194.97,5.1289]
[1738854175265,0.50009666,194.98,194.95,25.1293]
[1738854175266,0.5,194.97,194.95,25.1293]
[1738854175456,0.5,194.95,194.93,5.1298]
[1738854175763,0.5,194.96,194.94,0.25098]
[1738854175960,0.5,194.96,194.95,5.1295]
[1738854176453,0.5,194.96,194.91,25.1305]
[1738854176673,0.5,194.95,194.92,1.0]
[1738854176839,0.5,194.96,194.93,0.25098]
[1738854177236,0.5,194.96,194.93,0.12549]
[1738854177464,0.5,194.97,194.94,0.25098]
[1738854178159,0.5,194.94,194.91,20.0]
[1738854178361,9.666e-05,194.98,194.91,25.1303]
[1738854178362,0.5,194.92,194.91,25.1303]
[1738854178563,0.5,194.92,194.91,25.25579]
[1738854178743,0.5,194.9,194.89,5.1309]
[1738854178938,0.5,194.91,194.89,5.1309]
[1738854179337,0.5,194.91,194.9,0.25098]
[1738854179944,0.5,194.96,194.93,0.25098]
[1738854180145,0.50009666,194.98,194.95,0.25098]
[1738854180762,0.5,194.97,194.96,20.0]
[1738854180939,0.5,194.95,194.94,5.1297]
[1738854181340,0.5,194.96,194.91,5.1305]
[1738854181565,0.5,194.96,194.95,0.12549]
[1738854181766,0.5,194.95,194.94,20.0]
[1738854182060,0.5,194.95,194.94,25.38068]
[1738854182241,0.5,194.95,194.94,25.1297]
[1738854182444,0.5,194.95,194.94,5.1297]
[1738854183051,0.5,194.92,194.89,5.131]
[1738854183565,0.5,194.94,194.92,20.0]
[1738854183747,0.5,194.96,194.93,1.0]
[1738854184068,9.666e-05,194.98,194.97,26.25439]
[1738854184368,9.666e-05,194.98,194.97,26.63086]
[1738854184670,1.639e-05,195.0,194.99,0.50196]
[1738854184853,1.639e-05,195.0,194.99,1.01994538]
[1738854185052,1.639e-05,195.0,194.99,0.25098]
[1738854185249,0.50001639,195.0,194.99,0.12549]
[1738854185444,1.639e-05,195.0,194.99,1.02003693]
[1738854185667,5.392e-05,195.03,195.02,21.50196]
[1738854185847,9.706e-05,195.05,195.04,20.50196]
[1738854186050,7.077e-05,195.06,195.05,5.37778]
[1738854186861,2.963e-05,195.07,195.06,1.50196]
[1738854187172,7.3652,195.22,195.06,1.50196]
[1738854187173,0.5,195.16,195.1,1.0]
[1738854187366,2.41230164,195.26,195.1,1.76846227]
[1738854187367,0.5,195.15,195.1,1.76846227]
[1738854187555,0.5,195.16,195.11,20.50196]
[1738854187757,0.5,195.19,195.13,1.50196]
[1738854187986,0.5,195.21,195.15,0.50196]
[1738854188270,0.5,195.19,195.18,20.25098]
[1738854188484,0.5,195.17,195.16,5.124]
[1738854188693,0.5,195.18,195.16,5.124]
[1738854188849,22.61604509,195.25,195.16,5.124]
[1738854188850,0.5,195.19,195.17,0.25098]
[1738854189056,0.5,195.2,195.17,0.25098]
[1738854189250,22.61604509,195.29,195.16,5.124]
[1738854189251,0.5,195.17,195.16,5.124]
[1738854189452,0.5,195.18,195.16,5.124]
[1738854189670,1.80810164,195.29,195.16,5.124]
[1738854189671,0.5,195.2,195.17,0.25098]
[1738854189884,0.5,195.19,195.17,0.25098]
[1738854190180,0.5,195.19,195.18,5.24889]
[1738854190666,0.5,195.2,195.18,5.24889]
[1738854191075,0.5,195.2,195.19,22.67854731]
[1738854191474,0.10034683,195.2,195.19,22.92952731]
[1738854191786,0.60034683,195.2,195.19,22.80403731]
[1738854192151,0.60034683,195.2,195.19,22.67854731]
[1738854192556,0.60034683,195.2,195.19,22.80403731]
[1738854193257,0.10034683,195.2,195.19,22.80403731]
[1738854193455,0.60034683,195.2,195.19,22.80403731]
[1738854193696,0.10034683,195.2,195.19,22.80403731]
[1738854193888,0.10034683,195.2,195.19,22.92952731]
[1738854194077,0.10034683,195.2,195.19,23.18050731]
[1738854194257,0.10034683,195.2,195.19,28.05272731]
[1738854195155,0.60034683,195.2,195.19,28.05272731]
[1738854195351,0.10034683,195.2,195.19,28.05272731]
[1738854195585,0.09795187,195.21,195.2,0.50196]
[1738854195586,9.87e-05,195.21,195.2,0.50196]
[1738854195755,4.989e-05,195.22,195.21,1.50196]
[1738854195957,9.232e-05,195.23,195.22,20.50196]
[1738854196154,7.781e-05,195.24,195.23,6.37308]
[1738854196385,7.781e-05,195.24,195.23,29.81960345]
[1738854196689,9.897e-05,195.25,195.24,1.37647]
[1738854196860,9.897e-05,195.25,195.24,22.92952731]
[1738854197681,9.897e-05,195.25,195.24,23.05501731]
[1738854197864,7.675e-05,195.26,195.25,1.12549]
[1738854198063,7.675e-05,195.26,195.25,42.80403731]
[1738854198390,7.675e-05,195.26,195.25,47.92563731]
[1738854199594,3.369e-05,195.27,195.26,1.12549]
[1738854199766,3.369e-05,195.27,195.26,22.80403731]
[1738854200376,3.369e-05,195.27,195.26,27.92533731]
[1738854201169,0.50003369,195.27,195.26,27.79984731]
[1738854201575,0.50003369,195.27,195.26,5.1213]
[1738854201772,0.50003369,195.27,195.26,27.79984731]
[1738854203503,4.349e-05,195.28,195.27,0.12549]
[1738854203669,4.349e-05,195.31,195.3,21.0]
[1738854203872,1.5082,195.46,195.31,1.0]
[1738854204089,0.80810164,195.49,195.35,1.0]
[1738854204295,0.03,195.51,195.39,20.12549]
[1738854204473,0.03,195.51,195.45,22.67854731]
[1738854204671,1.0,195.5,195.43,22.67854731]
[1738854204881,24.51664895,195.51,195.43,22.67854731]
[1738854205069,24.51664895,195.51,195.44,22.67854731]
[1738854205389,1.0,195.5,195.43,22.67854731]
[1738854205599,1.83810164,195.51,195.45,22.67854731]
[1738854205772,1.83810164,195.51,195.4,27.79624731]
[1738854205773,0.03,195.51,195.47,22.67854731]
[1738854205977,0.03,195.51,195.48,22.67854731]
[1738854206385,0.03,195.51,195.5,22.67854731]
[1738854207694,0.03,195.51,195.5,22.80403731]
[1738854208279,7.7767,195.6,195.5,22.80403731]
[1738854208280,1.5294,195.6,195.52,5.1145]
[1738854208605,0.03,195.63,195.57,22.67854731]
[1738854208805,0.03,195.63,195.6,22.67854731]
[1738854209171,0.03,195.63,195.52,18.9009]
[1738854209172,0.03,195.63,195.52,5.1145]
[1738854209507,1.0,195.62,195.52,27.79304731]
[1738854210008,22.67854731,195.57,195.5,5.1148]
[1738854210210,22.67854731,195.56,195.5,5.1148]
[1738854210708,1.0,195.6,195.5,27.79334731]
[1738854210709,22.67854731,195.58,195.5,27.79334731]
[1738854211007,22.67854731,195.58,195.51,22.67854731]
[1738854211509,0.09925767,195.52,195.48,27.79384731]
[1738854211714,0.09925767,195.52,195.51,22.67854731]
[1738854211909,9.208e-05,195.53,195.52,1.0]
[1738854212072,9.208e-05,195.53,195.52,21.0]
[1738854212677,9.208e-05,195.53,195.52,49.16951731]
[1738854212875,5.118e-05,195.57,195.56,20.12549]
[1738854213192,2.408e-05,195.59,195.58,14.78831853]
[1738854213403,0.03,195.71,195.61,21.25098]
[1738854213602,0.0001,195.63,195.62,1.14293262]
[1738854213911,0.0001,195.63,195.62,14.55478115]
[1738854214220,0.03,195.71,195.68,0.25098]
[1738854214376,0.03,195.71,195.7,22.80403731]
[1738854214572,0.0001,195.71,195.7,51.25978097]
[1738854214794,0.03,195.77,195.74,20.0]
[1738854215098,0.03,195.77,195.76,22.67854731]
[1738854215520,0.03,195.77,195.76,22.92952731]
[1738854215804,0.03,195.83,195.77,0.37647]
[1738854216011,0.03,195.83,195.82,22.67854731]
[1738854216472,0.03,195.83,195.8,22.67854731]
[1738854216675,0.03,195.83,195.8,36.62645467]
[1738854217079,0.03,195.83,195.82,36.62645467]
[1738854217500,0.03,195.83,195.79,36.62645467]
[1738854217705,0.03,195.83,195.8,36.62645467]
[1738854218007,0.03,195.83,195.77,36.62645467]
[1738854218377,1.15549,195.83,195.72,36.62645467]
[1738854218580,36.62645467,195.78,195.71,36.62645467]
[1738854218978,36.62645467,195.79,195.72,36.62645467]
[1738854219318,36.62645467,195.8,195.73,36.62645467]
[1738854219478,36.62645467,195.82,195.73,0.12549]
[1738854219681,0.03,195.83,195.78,36.62645467]
[1738854219893,0.03,195.83,195.74,0.12549]
[1738854219894,0.03,195.83,195.81,36.62645467]
[1738854220194,0.03,195.83,195.77,36.62645467]
[1738854220395,0.03,195.83,195.74,0.12549]
[1738854220803,0.03,195.83,195.75,5.1085]
[1738854221377,0.03,195.83,195.78,36.62645467]
[1738854221618,0.03,195.83,195.8,36.62645467]
[1738854221774,0.03,195.83,195.82,36.62645467]
[1738854222386,0.03,195.83,195.79,36.62645467]
[1738854223293,36.65645467,195.83,195.75,56.62645467]
[1738854224191,36.62645467,195.79,195.73,36.62645467]
[1738854224393,0.03,195.83,195.73,36.62645467]
[1738854224598,36.65645467,195.83,195.75,36.62645467]
[1738854224786,0.03,195.83,195.76,36.62645467]
[1738854225183,36.62645467,195.82,195.74,36.62645467]
[1738854225393,36.62645467,195.8,195.73,36.62645467]
[1738854225698,36.62645467,195.81,195.74,36.62645467]
[1738854225889,36.62645467,195.82,195.75,56.62645467]
[1738854226909,36.65645467,195.83,195.75,61.73485467]
[1738854227092,36.65645467,195.83,195.76,36.62645467]
[1738854227292,0.03,195.83,195.78,36.62645467]
[1738854227489,0.03,195.83,195.8,36.62645467]